bitfinex/quotes_ETHUSD_20250219
["timestamp","ask_amount","ask_price","bid_price","bid_amount"]
[1739929332620,3.74882,2667.5,2667.4,0.06268687]
[1739929333900,3.74882,2667.5,2667.1,0.7868]
[1739929334103,3.74882,2667.5,2667.4,0.06270614]
[1739929334303,3.74882,2667.5,2667.1,0.7868]
[1739929334603,3.74882,2667.5,2667.4,0.06270614]
[1739929334810,0.74975,2667.5,2666.8,0.7868]
[1739929334975,0.74975,2667.5,2667.4,0.06270614]
[1739929334976,3.74882,2667.5,2667.4,0.06270614]
[1739929335306,3.74882,2667.5,2667.0,0.7868]
[1739929335307,3.74893,2667.5,2667.0,0.7868]
[1739929335466,3.74898,2667.4,2667.0,0.7868]
[1739929335667,3.74873,2667.6,2667.1,0.06292532]
[1739929335946,4.195465,2667.7,2667.5,3.74872]
[1739929336146,4.195465,2668.2,2668.1,3.74798]
[1739929336349,3.74766,2668.4,2667.9,0.8329]
[1739929336554,3.74782,2668.3,2668.1,0.06191859]
[1739929336830,3.74766,2668.4,2668.2,0.06163358]
[1739929337034,3.74766,2668.4,2667.9,0.8329]
[1739929337035,1.04812989,2668.4,2667.9,0.8329]
[1739929337246,3.74812,2668.0,2667.5,0.8194]
[1739929337463,3.74802,2668.1,2667.5,4.56809]
[1739929337621,3.74784,2668.2,2667.5,0.8194]
[1739929337963,3.74784,2668.2,2667.7,0.8285]
[1739929338164,3.74784,2668.2,2667.8,0.457705]
[1739929338837,7.4953,2668.4,2667.8,0.457705]
[1739929339018,3.74764,2668.4,2667.8,0.457705]
[1739929339663,3.74764,2668.4,2667.8,4.206105]
[1739929340070,3.74788,2668.2,2667.8,0.457705]
[1739929340226,3.74764,2668.4,2667.7,0.8285]
[1739929340227,3.7484,2667.8,2667.7,0.8285]
[1739929340430,3.74824,2668.0,2667.3,0.8254]
[1739929340627,3.74824,2668.0,2667.4,3.74895]
[1739929340941,3.74805,2668.1,2667.5,4.57413]
[1739929341138,3.74805,2668.1,2667.7,0.8254]
[1739929341340,3.748,2668.1,2667.7,0.8254]
[1739929342063,3.74796,2668.2,2667.7,0.8254]
[1739929342272,3.74801,2668.1,2667.7,0.8254]
[1739929342440,3.74796,2668.2,2667.7,0.8254]
[1739929342441,3.74813,2668.0,2667.7,0.8254]
[1739929342644,3.74813,2668.0,2667.7,1.3660438]
[1739929343340,3.7484,2667.8,2667.3,0.7998]
[1739929343559,3.74876,2667.6,2667.3,0.7998]
[1739929343740,3.74848,2667.8,2667.3,0.7998]
[1739929343946,3.74837,2667.9,2667.3,0.7998]
[1739929344151,3.74844,2667.8,2667.3,0.83728653]
[1739929344357,3.74844,2667.8,2667.3,4.58635653]
[1739929344565,3.7482,2668.0,2667.3,4.58635653]
[1739929344736,3.74842,2667.8,2667.3,4.58635653]
[1739929344932,4.17802,2668.0,2667.5,3.7488]
[1739929344933,3.7482,2668.0,2667.5,3.7488]
[1739929345136,3.74815,2668.0,2667.6,0.8015]
[1739929345344,0.55,2668.2,2667.6,0.8015]
[1739929345665,3.74829,2667.9,2667.6,0.8015]
[1739929346273,3.74825,2668.0,2667.6,0.8015]
[1739929346572,3.74762,2668.4,2667.7,0.8203]
[1739929346767,3.74773,2668.3,2667.8,0.8232]
[1739929346976,3.74762,2668.4,2667.8,4.57151]
[1739929347179,3.74771,2668.3,2667.9,0.06178839]
[1739929347380,3.74771,2668.3,2668.0,0.8232]
[1739929347677,3.74771,2668.3,2668.1,0.06164236]
[1739929347841,6.74784,2668.2,2668.1,0.06164236]
[1739929348047,0.55,2668.1,2667.4,0.802]
[1739929348247,3.74839,2667.9,2667.5,0.06130338]
[1739929349257,3.74827,2667.9,2667.5,0.06130338]
[1739929349853,3.74841,2667.8,2667.5,0.06130338]
[1739929350065,3.74827,2667.9,2667.5,0.06130338]
[1739929350439,7.943535,2668.1,2667.5,0.06130338]
[1739929350664,3.74828,2667.9,2667.5,0.06130338]
[1739929350907,7.49663,2667.9,2667.5,0.06130338]
[1739929351587,3.74855,2667.7,2667.5,0.06130338]
[1739929352086,3.74826,2667.9,2667.5,0.06130338]
[1739929352670,7.943525,2668.1,2667.5,3.81012338]
[1739929352872,7.943525,2668.1,2667.6,0.7645]
[1739929353393,7.943525,2668.1,2667.7,0.06130501]
[1739929353555,11.691635,2668.1,2667.7,0.06130501]
[1739929353757,3.74822,2668.0,2667.7,0.06130501]
[1739929354704,3.74826,2667.9,2667.7,0.06130501]
[1739929355717,7.49647,2668.0,2667.7,0.06130501]
[1739929356009,3.74827,2667.9,2667.7,0.06130501]
[1739929356182,7.943465,2668.1,2667.7,0.06130501]
[1739929356379,3.74821,2668.0,2667.7,0.06130501]
[1739929357206,3.74828,2667.9,2667.7,0.06130501]
[1739929357406,3.74834,2667.9,2667.7,0.06130501]
[1739929358209,3.74807,2668.1,2667.7,0.06130501]
[1739929359101,3.74814,2668.0,2667.7,0.06130501]
[1739929359811,7.943245,2668.3,2667.8,0.8098]
[1739929359991,3.74806,2668.1,2667.8,0.8098]
[1739929360192,3.74806,2668.1,2667.9,0.06115895]
[1739929360507,3.74806,2668.1,2668.0,0.06124646]
[1739929361009,3.74826,2667.9,2667.8,0.8098]
[1739929361505,7.49614,2668.1,2667.8,0.8098]
[1739929361712,3.74806,2668.1,2667.8,0.8098]
[1739929362110,7.49616,2668.1,2667.8,0.8098]
[1739929362712,7.49615,2668.1,2667.8,0.8098]
[1739929363022,3.74814,2668.0,2667.8,0.8098]
[1739929363646,7.49615,2668.1,2667.8,0.8098]
[1739929364047,3.74806,2668.1,2667.8,0.8098]
[1739929364344,3.74826,2667.9,2667.8,0.8098]
[1739929365058,3.74826,2667.9,2667.3,3.749]
[1739929365230,0.55,2668.3,2667.5,0.794]
[1739929367614,2.53817385,2668.1,2667.5,0.794]
[1739929369412,2.53817385,2668.1,2667.2,0.7705]
[1739929369413,0.55,2668.0,2667.2,0.7705]
[1739929369653,0.72836389,2667.9,2667.2,0.7705]
[1739929370548,0.55,2667.8,2667.2,0.7705]
[1739929370727,0.55,2667.8,2666.8,0.7785]
[1739929370728,3.08817385,2667.8,2666.8,0.7785]
[1739929371314,7.28363885,2667.8,2666.8,0.7785]
[1739929371546,0.55,2667.4,2666.8,0.7785]
[1739929373528,6.73363885,2667.8,2666.9,0.03749474]
[1739929373717,6.73363885,2667.8,2667.0,4.52442]
[1739929373919,6.73363885,2667.8,2667.1,0.7749]
[1739929374458,7.33899392,2667.8,2667.1,0.7749]
[1739929375850,4.80082007,2667.8,2667.2,0.8294]
[1739929376027,2.53817385,2668.1,2666.7,3.0]
[1739929376028,6.73363885,2668.1,2666.8,0.8294]
[1739929376223,6.73363885,2668.1,2667.0,4.55779]
[1739929376424,4.195465,2668.1,2667.4,3.74896]
[1739929376652,4.195465,2668.1,2667.5,0.8084]
[1739929377017,4.195465,2668.1,2667.6,0.06216163]
[1739929378063,2.53817385,2668.0,2667.6,0.06216163]
[1739929378217,2.53817385,2668.0,2667.3,0.767]
[1739929378417,2.53817385,2668.0,2667.4,0.06230772]
[1739929378637,3.21153774,2668.0,2667.4,0.06230772]
[1739929380753,0.67336389,2668.0,2667.4,0.06230772]
[1739929381049,4.195465,2668.1,2667.4,0.06230772]
[1739929381249,2.53817385,2668.0,2667.4,0.06230772]
[1739929381457,2.53817385,2668.0,2667.1,0.8289]
[1739929381655,0.55,2667.9,2667.2,0.06245383]
[1739929386864,2.53817385,2668.3,2667.5,0.7839]
[1739929387069,0.55,2668.1,2667.6,0.06200103]
[1739929388081,0.55,2667.9,2667.6,0.06200103]
[1739929388239,2.53817385,2667.7,2667.2,0.7591]
[1739929388574,0.55,2667.6,2667.3,0.06222017]
[1739929388874,0.55,2667.6,2666.8,0.7591]
[1739929389064,0.55,2667.6,2666.9,0.06240965]
[1739929389269,0.85881739,2667.6,2666.9,0.06240965]
[1739929390042,2.73411592,2668.0,2666.9,3.81199965]
[1739929390281,3.0,2667.9,2667.1,3.74933]
[1739929390481,3.0,2667.9,2667.2,0.06219044]
[1739929390651,3.0,2667.9,2667.0,4.50099]
[1739929390985,3.0,2667.9,2667.1,0.5123625]
[1739929393275,2.53817385,2667.7,2667.1,0.0622635]
[1739929395068,0.55,2667.6,2667.1,0.0622635]
[1739929395269,0.55,2667.6,2666.7,0.8152]
[1739929395589,0.55,2667.6,2666.8,0.06259193]
[1739929402232,0.55,2667.3,2666.8,0.06259193]
[1739929402519,0.85881739,2667.3,2666.4,0.7816]
[1739929402693,0.55,2667.3,2666.4,0.7816]
[1739929402895,0.55,2667.3,2666.5,0.06305535]
[1739929404120,0.55,2667.3,2666.5,3.81328535]
[1739929404308,0.55,2667.3,2666.5,0.06305535]
[1739929406119,0.55,2667.0,2666.5,0.06305535]
[1739929406527,0.55,2667.0,2666.2,0.8133]
[1739929406726,2.53817385,2666.8,2666.6,0.06298225]
[1739929407030,3.55,2666.7,2665.5,0.8133]
[1739929407348,2.53817385,2666.6,2665.6,0.06186812]
[1739929407619,2.81117385,2666.9,2666.3,0.7772]
[1739929407829,2.53817385,2666.9,2666.3,4.52767]
[1739929408122,2.53817385,2667.2,2666.4,3.81162597]
[1739929408282,0.55,2667.1,2666.4,0.89523857]
[1739929409719,2.53817385,2666.9,2666.4,0.06129597]
[1739929410427,2.53817385,2666.9,2666.1,0.7924]
[1739929410591,2.53817385,2666.9,2666.5,0.0614478]
[1739929410916,2.53817385,2666.9,2666.6,0.0613747]
[1739929411282,2.53817385,2666.9,2666.1,0.7924]
[1739929411483,2.53817385,2666.9,2666.2,0.06166712]
[1739929413623,2.53817385,2667.2,2666.4,3.75028]
[1739929413829,3.0,2667.4,2666.5,0.7974]
[1739929413830,0.55,2667.3,2666.5,0.7974]
[1739929414132,2.53817385,2667.4,2666.6,3.75003]
[1739929414491,0.55,2667.3,2666.7,0.06135946]
[1739929414926,0.55,2667.3,2666.5,4.54762]
[1739929415127,0.55,2667.3,2666.8,0.06127995]
[1739929415330,0.55,2667.3,2666.6,0.829789]
[1739929415491,0.55,2667.3,2666.9,0.06120687]
[1739929415825,0.55,2667.3,2666.6,4.579849]
[1739929416032,0.55,2667.3,2667.0,0.06101168]
[1739929416330,0.55,2667.3,2667.1,0.06093861]
[1739929416506,0.55,2667.3,2666.6,0.829789]
[1739929416706,0.55,2667.3,2666.7,0.59897181]
[1739929416908,2.53817385,2667.4,2666.8,4.5729]
[1739929417121,2.53817385,2667.7,2666.8,4.5729]
[1739929417317,3.0,2667.6,2666.9,0.06105904]
[1739929417506,2.53817385,2667.7,2666.9,0.06105904]
[1739929417707,2.53817385,2667.7,2667.0,0.4633959]
[1739929417910,3.0,2667.6,2667.1,0.0609129]
[1739929418592,0.55,2667.9,2667.1,0.0609129]
[1739929418797,2.53817385,2667.7,2667.1,0.0609129]
[1739929419230,3.0,2667.6,2666.8,4.573]
[1739929419429,3.0,2667.6,2667.2,0.06083984]
[1739929419629,3.0,2667.6,2666.9,0.51107409]
[1739929419829,3.0,2667.6,2667.3,0.06076678]
[1739929420129,3.0,2667.6,2667.4,0.06069373]
[1739929420500,3.0,2667.6,2666.8,4.57296]
[1739929420694,3.0,2667.6,2667.0,0.7835]
[1739929420890,2.53817385,2668.4,2667.3,0.7835]
[1739929421153,2.53817385,2668.5,2667.4,0.0603467]
[1739929421438,2.53817385,2668.5,2667.7,0.7835]
[1739929421728,2.53817385,2668.5,2667.8,0.06000315]
[1739929421924,0.25381739,2668.4,2667.8,0.06000315]
[1739929423451,0.55,2668.3,2667.8,0.06000315]
[1739929425333,0.19590459,2668.8,2667.8,0.06000315]
[1739929425558,2.53817385,2669.0,2668.2,0.7815]
[1739929425700,2.79199124,2669.0,2668.2,0.7815]
[1739929425895,2.79199124,2669.0,2668.3,0.05931045]
[1739929427101,2.73402092,2669.3,2668.3,0.05931045]
[1739929427302,2.73402092,2669.3,2668.4,3.74747]
[1739929427506,0.55,2669.2,2668.5,0.82040117]
[1739929429600,2.73402092,2669.3,2668.5,4.56780117]
[1739929429818,2.73402092,2669.3,2668.5,0.82040117]
[1739929429819,0.19584707,2669.3,2668.5,0.82040117]
[1739929430019,2.53817385,2669.6,2668.7,3.74713]
[1739929430254,2.53817385,2669.6,2668.8,0.749427]
[1739929430410,2.53817385,2669.6,2668.9,0.8039]
[1739929430918,3.55,2669.5,2669.0,0.05826024]
[1739929437680,3.0,2669.5,2669.0,0.05826024]
[1739929438972,0.1958177,2669.8,2669.0,0.05826024]
[1739929439271,8.433,2670.5,2669.2,0.762]
[1739929439272,2.53817385,2670.1,2669.2,0.762]
[1739929439440,2.53817385,2670.1,2669.4,0.762]
[1739929439856,2.53817385,2670.1,2669.5,0.05666262]
[1739929441946,3.08817385,2670.2,2669.5,0.05666262]
[1739929444263,2.53817385,2669.9,2669.5,0.05666262]
[1739929444603,2.53817385,2669.9,2669.4,0.762]
[1739929444748,3.08817385,2670.2,2669.6,0.05613415]
[1739929444952,3.71656878,2670.2,2669.4,0.762]
[1739929445156,3.71656878,2670.2,2669.5,0.05620708]
[1739929445653,2.53817385,2669.9,2669.5,0.05620708]
[1739929446299,0.55,2669.8,2669.5,0.05620708]
[1739929446649,2.53817385,2669.9,2669.6,0.7683]
[1739929446849,2.53817385,2669.9,2669.6,0.82443415]
[1739929447500,2.79199124,2669.9,2669.6,0.05613415]
[1739929447983,2.79199124,2669.9,2669.7,0.05606122]
[1739929448184,2.79199124,2669.9,2669.3,0.7721]
[1739929448383,2.53817385,2669.9,2669.8,0.0559883]
[1739929448558,2.53817385,2669.9,2669.3,0.7721]
[1739929448954,1.17839493,2670.2,2669.4,0.05628002]
[1739929449186,0.55,2670.0,2669.4,0.05628002]
[1739929449402,0.55,2670.0,2669.5,0.8098]
[1739929449568,3.55,2670.0,2669.5,0.86600708]
[1739929450361,3.0,2670.0,2669.5,0.86600708]
[1739929452091,2.53817385,2669.8,2669.5,0.86600708]
[1739929452623,2.53817385,2669.8,2669.5,0.05620708]
[1739929452823,2.53817385,2669.8,2669.3,0.8093]
[1739929452969,2.53817385,2669.8,2669.6,0.05581975]
[1739929453317,0.55,2669.7,2668.0,3.74811]
[1739929453520,2.53817385,2669.4,2668.5,0.7613]
[1739929453672,2.53817385,2669.4,2668.6,0.7613]
[1739929455285,2.53817385,2669.4,2668.8,0.787]
[1739929455487,3.39699124,2669.7,2668.8,0.787]
[1739929455826,0.55,2669.5,2668.8,0.787]
[1739929456185,2.53817385,2669.7,2668.8,0.787]
[1739929457919,0.55,2669.6,2668.8,0.787]
[1739929458325,0.55,2669.3,2668.8,0.787]
[1739929459592,0.74583811,2669.3,2668.8,0.787]
[1739929459943,1.07423931,2669.3,2668.8,0.787]
[1739929460419,1.07423931,2669.3,2668.9,0.05650358]
[1739929460571,1.07423931,2669.3,2668.8,0.787]
[1739929460773,1.07423931,2669.3,2669.0,0.05643062]
[1739929461009,1.07423931,2669.3,2668.8,0.787]
[1739929461312,0.55,2669.1,2668.2,0.763]
[1739929461482,3.08817385,2669.1,2668.9,0.05650358]
[1739929461682,3.08817385,2669.1,2668.2,0.763]
[1739929461877,3.45269918,2669.1,2668.2,0.763]
[1739929462079,0.55,2668.7,2668.3,0.05715322]
[1739929462467,0.55,2668.7,2668.2,0.763]
[1739929462670,0.55,2668.7,2668.4,0.05708022]
[1739929462895,0.55,2668.7,2668.2,0.763]
[1739929463315,0.55,2668.7,2668.3,0.05715322]
[1739929463829,0.55,2668.7,2668.4,0.05708022]
[1739929464126,0.55,2668.7,2668.2,0.763]
[1739929464290,0.55,2668.7,2668.5,0.05700723]
[1739929464491,0.55,2668.7,2668.2,0.763]
[1739929464717,0.55,2668.7,2668.6,0.05693424]
[1739929464927,0.55,2668.7,2668.2,0.763]
[1739929465143,0.55,2668.7,2668.6,0.05693424]
[1739929465280,0.55,2668.7,2668.2,0.763]
[1739929465480,0.55,2668.7,2668.6,0.05693424]
[1739929466010,0.55,2668.7,2668.2,0.763]
[1739929466200,0.55,2668.7,2668.6,0.05693424]
[1739929466385,0.85881739,2668.7,2668.2,0.763]
[1739929466625,0.55,2668.7,2668.6,0.05693424]
[1739929466827,0.55,2668.7,2668.2,0.763]
[1739929467029,0.55,2668.9,2668.6,0.05735135]
[1739929467228,0.55,2668.9,2667.8,0.7879]
[1739929467431,0.273,2669.0,2667.8,0.7879]
[1739929467432,0.55,2668.5,2667.8,0.7879]
[1739929467735,0.85881739,2668.5,2667.8,0.7879]
[1739929468102,0.85881739,2668.5,2667.1,3.74936]
[1739929468301,2.53817385,2668.1,2667.2,0.7879]
[1739929468829,2.53817385,2668.1,2667.3,0.7879]
[1739929470229,0.55,2668.0,2667.3,0.7879]
[1739929473625,2.53817385,2668.1,2667.3,0.7879]
[1739929478868,2.53817385,2668.1,2667.3,1.53055351]
[1739929479151,0.25381739,2668.0,2667.4,0.8081]
[1739929482052,0.25381739,2668.0,2667.5,0.05683848]
[1739929484351,0.25381739,2668.0,2667.6,0.8284]
[1739929484556,3.0,2668.1,2667.6,0.88516544]
[1739929484752,0.55,2668.3,2667.6,0.88516544]
[1739929484953,5.38,2668.4,2667.7,0.8284]
[1739929485159,5.38,2668.5,2667.7,0.8284]
[1739929485333,3.0,2668.4,2667.8,0.05661937]
[1739929485659,5.38,2668.5,2667.9,0.7814]
[1739929485820,5.38,2668.5,2667.9,0.83794635]
[1739929486475,5.38,2668.5,2667.9,3.80478635]
[1739929486830,5.38,2668.5,2668.0,0.8097]
[1739929486972,5.38,2668.5,2668.1,0.8097]
[1739929487172,5.38,2668.5,2668.2,0.05632731]
[1739929490327,5.38,2669.3,2668.3,0.8225]
[1739929490528,2.53817385,2669.5,2668.7,0.8225]
[1739929491064,2.53817385,2669.5,2668.8,0.0560689]
[1739929491468,0.55,2669.4,2668.7,0.8225]
[1739929491759,0.55,2669.4,2668.9,0.05599593]
[1739929492058,6.12583576,2669.4,2668.7,0.8225]
[1739929492240,0.55,2669.2,2669.0,0.05592296]
[1739929492556,3.08817385,2669.2,2668.7,0.8225]
[1739929493010,3.08817385,2669.2,2668.8,0.0560689]
[1739929493509,0.55,2669.2,2668.8,0.0560689]
[1739929493732,7.91817385,2669.4,2668.8,0.0560689]
[1739929494269,5.38,2669.6,2668.9,0.8246]
[1739929494412,5.38,2669.6,2669.0,0.03746456]
[1739929494609,5.38,2669.6,2669.1,0.8246]
[1739929494854,5.38,2669.6,2669.1,0.88004612]
[1739929495566,5.38,2669.6,2669.2,3.74643]
[1739929495864,5.38,2669.6,2669.3,0.8246]
[1739929496028,5.38,2669.6,2669.3,0.87918208]
[1739929496717,5.38,2670.2,2669.4,0.7947]
[1739929497051,0.55,2670.1,2669.4,1.30876835]
[1739929498440,0.55,2670.1,2669.5,0.7746]
[1739929498721,5.38,2670.2,2669.5,0.82879909]
[1739929499729,7.91817385,2670.3,2669.5,0.82879909]
[1739929502464,5.38,2670.3,2669.5,0.82879909]
[1739929502831,5.38,2670.3,2669.6,0.78]
[1739929503173,5.38,2670.3,2669.8,0.78]
[1739929503375,0.55,2670.3,2669.8,0.78]
[1739929503556,0.55,2670.0,2669.9,0.05390739]
[1739929503757,0.55,2670.0,2669.8,0.78]
[1739929505203,0.55,2670.0,2669.9,0.05375363]
[1739929505495,0.55,2670.0,2669.8,0.78]
[1739929505848,0.55,2670.0,2669.9,0.05375363]
[1739929506288,8.57576212,2670.4,2669.9,0.05375363]
[1739929506460,8.38,2670.4,2669.9,0.05375363]
[1739929506660,0.55,2670.3,2669.8,0.78]
[1739929506982,0.55,2670.3,2670.0,0.05320016]
[1739929507181,0.55,2670.3,2669.9,0.05327307]
[1739929507372,0.55,2670.3,2669.8,0.78]
[1739929507373,0.55,2670.3,2670.1,0.05312725]
[1739929507571,3.98117385,2670.3,2670.0,0.05320016]
[1739929507759,3.98117385,2670.3,2669.6,0.7656]
[1739929507965,3.08817385,2670.3,2669.6,0.7656]
[1739929508177,3.08817385,2670.3,2669.7,0.05336766]
[1739929508573,0.55,2669.9,2669.7,0.05336766]
[1739929508950,2.53817385,2670.0,2669.3,0.7656]
[1739929509154,3.55,2669.9,2669.8,0.05333958]
[1739929509355,4.69681738,2669.9,2669.3,0.7656]
[1739929509654,5.38,2670.0,2669.3,0.7656]
[1739929510166,5.38,2670.0,2669.5,4.51154]
[1739929510364,5.38,2670.0,2669.6,0.7656]
[1739929510579,5.38,2670.0,2669.8,0.827]
[1739929510789,8.19117385,2670.9,2669.8,0.827]
[1739929511105,8.19117385,2670.9,2669.0,5.36]
[1739929511106,7.91817385,2670.9,2670.0,0.7634]
[1739929511453,7.91817385,2670.9,2670.0,3.74517]
[1739929511654,5.38,2671.1,2670.2,3.74501]
[1739929511885,5.38,2671.1,2670.3,0.7916]
[1739929512200,0.1477727,2671.2,2670.7,0.7916]
[1739929512352,0.1477727,2671.2,2670.8,0.453594]
[1739929512718,0.1477727,2671.2,2670.9,0.8085]
[1739929512854,0.1477727,2671.2,2671.0,3.7439]
[1739929513195,0.1477727,2671.2,2671.1,0.8085]
[1739929513693,0.1477727,2671.2,2671.1,0.86014293]
[1739929513854,0.1477727,2671.2,2671.1,1.57436461]
[1739929514851,0.1477727,2671.2,2671.1,5.31813461]
[1739929515284,0.55,2672.1,2671.1,6.12586461]
[1739929515468,0.55,2672.1,2671.5,0.8162]
[1739929515678,0.55,2672.1,2671.7,0.8162]
[1739929515874,0.55,2672.1,2671.9,0.8205]
[1739929516281,0.55,2672.1,2672.0,0.05064198]
[1739929518125,0.55,2672.1,2672.0,0.85644198]
[1739929518328,0.55,2672.1,2672.0,7.17454565]
[1739929518539,0.55,2672.1,2672.0,7.13712583]
[1739929518838,0.55,2672.1,2672.0,8.76109941]
[1739929520719,5.38,2673.3,2672.4,0.769]
[1739929520925,0.55,2673.3,2672.5,0.03741328]
[1739929521127,5.385,2673.4,2672.5,0.04808967]
[1739929521321,6.54706738,2673.4,2672.5,0.38361602]
[1739929521715,0.55,2673.3,2672.5,0.04808967]
[1739929522537,0.6975,2673.2,2672.5,0.04808967]
[1739929522740,0.55,2673.1,2672.5,0.04808967]
[1739929523535,0.6975,2673.2,2672.5,0.04808967]
[1739929523738,5.385,2673.4,2672.6,0.7772]
[1739929523911,0.005,2673.4,2673.0,0.7772]
[1739929524150,0.005,2673.4,2673.0,1.229036]
[1739929524456,0.005,2673.4,2673.1,0.04733991]
[1739929528284,0.7025,2673.4,2673.1,0.04733991]
[1739929528485,3.7025,2673.4,2673.1,0.04733991]
[1739929528639,3.7025,2673.4,2672.7,0.8286]
[1739929528840,3.7025,2673.4,2672.8,0.04673368]
[1739929529042,0.62406739,2673.3,2672.7,0.8286]
[1739929529352,0.55,2673.2,2672.8,0.04673368]
[1739929529546,0.55,2673.2,2672.3,0.8286]
[1739929529747,0.55,2673.2,2672.4,0.03741602]
[1739929529934,0.55,2673.2,2672.3,0.8286]
[1739929530140,1.57565674,2673.2,2672.5,0.04695196]
[1739929530340,7.11383059,2673.2,2672.4,0.04702474]
[1739929530553,0.55,2673.0,2672.6,0.0468792]
[1739929530764,0.55,2673.0,2672.3,0.8286]
[1739929530971,0.55,2673.0,2671.9,0.761]
[1739929531273,0.55,2673.0,2672.4,0.04702474]
[1739929531437,0.6975,2673.1,2672.5,0.809]
[1739929531641,5.38,2673.3,2672.5,0.809]
[1739929531878,5.38,2673.3,2672.6,0.0468792]
[1739929533081,0.55,2673.2,2672.6,0.0468792]
[1739929533665,1.46706739,2673.2,2672.6,0.0468792]
[1739929534040,6.0825,2673.4,2672.6,0.0468792]
[1739929534237,5.385,2673.4,2672.7,4.51871]
[1739929534541,5.385,2673.4,2672.9,0.7773]
[1739929534542,0.005,2673.4,2672.9,0.7773]
[1739929534979,0.005,2673.4,2673.0,0.04672237]
[1739929535280,0.005,2673.4,2673.0,0.50325261]
[1739929535791,0.005,2673.4,2673.0,4.24428261]
[1739929535977,0.005,2673.4,2673.1,4.53279]
[1739929536156,0.005,2673.4,2673.1,0.7919]
[1739929536354,0.005,2673.4,2673.2,0.04649382]
[1739929542390,0.005,2673.4,2672.8,3.7878]
[1739929542606,0.005,2673.4,2673.3,0.04585891]
[1739929543099,0.005,2673.4,2672.8,0.7878]
[1739929543282,0.005,2673.4,2673.3,0.04592917]
[1739929543488,0.005,2673.4,2672.8,0.7878]
[1739929543796,0.005,2673.4,2673.3,0.04592917]
[1739929544261,0.005,2673.4,2672.8,0.7878]
[1739929544463,0.005,2673.4,2672.9,0.04622013]
[1739929544663,0.6975,2673.3,2672.9,0.04622013]
[1739929545000,0.55,2673.2,2672.5,0.8079]
[1739929545196,0.55,2673.2,2672.2,5.36]
[1739929545197,5.93,2673.2,2672.1,0.8163]
[1739929545395,0.6975,2672.9,2672.6,0.04657895]
[1739929545697,0.66275,2673.1,2672.2,3.74221]
[1739929545903,6.0775,2673.2,2672.3,0.7868]
[1739929546084,6.0775,2673.2,2672.3,0.83377619]
[1739929546468,6.35615509,2673.2,2672.3,0.83377619]
[1739929546871,0.55,2673.1,2672.3,0.83377619]
[1739929547371,6.35615509,2673.2,2672.3,0.83377619]
[1739929549008,0.55,2673.1,2672.3,1.29138081]
[1739929549205,0.55,2673.1,2672.3,0.83377619]
[1739929551008,5.93,2673.1,2672.3,0.83377619]
[1739929554092,5.38,2673.1,2672.3,0.83377619]
[1739929556324,5.38,2673.1,2672.3,4.57583619]
[1739929556509,5.38,2673.1,2672.5,0.8279]
[1739929556714,5.38,2673.1,2672.7,0.8279]
[1739929556911,5.38,2673.5,2672.9,0.8279]
[1739929557321,5.38,2673.5,2673.0,0.04707383]
[1739929559291,0.6975,2673.3,2673.0,0.04707383]
[1739929559515,0.6975,2673.3,2672.6,0.7748]
[1739929559698,0.6975,2673.3,2673.1,0.04700109]
[1739929559903,0.555,2673.4,2672.6,0.7748]
[1739929560086,0.005,2673.4,2673.2,0.04692836]
[1739929560302,0.005,2673.4,2672.7,0.7858]
[1739929560726,0.005,2673.4,2672.8,0.04721933]
[1739929566010,3.07842603,2673.2,2672.8,0.04721933]
[1739929566311,0.6975,2672.9,2672.3,3.74207]
[1739929566506,0.005,2673.4,2672.5,0.7719]
[1739929566832,0.005,2673.4,2672.5,4.5136]
[1739929567042,3.005,2673.4,2672.7,0.7719]
[1739929567247,0.005,2673.4,2672.7,0.7719]
[1739929567414,0.005,2673.4,2672.8,0.04531904]
[1739929567849,0.005,2673.4,2672.9,4.51313]
[1739929568053,0.005,2673.4,2673.0,0.4558449]
[1739929568357,0.005,2673.4,2673.0,0.50101206]
[1739929568514,0.005,2673.4,2673.1,0.7671]
[1739929568906,0.005,2673.4,2673.2,0.04502168]
[1739929571803,0.005,2673.4,2673.3,0.7797]
[1739929572164,0.005,2673.4,2673.3,0.82464895]
[1739929573513,0.005,2673.4,2673.3,7.52441888]
[1739929573998,0.005,2673.4,2673.3,1.25530285]
[1739929575100,0.005,2673.4,2673.3,5.0333938]
[1739929575443,0.005,2673.4,2673.3,7.52441888]
[1739929575803,0.005,2673.4,2673.3,7.56181383]
[1739929576450,0.005,2673.4,2673.3,7.52441888]
[1739929577644,0.005,2673.4,2673.3,12.88441888]
[1739929577817,0.1477727,2673.9,2673.8,3.73999]
[1739929578019,0.1477727,2673.9,2673.8,7.44891503]
[1739929578220,0.1477727,2673.9,2673.8,7.49180944]
[1739929578419,0.1477727,2673.9,2673.8,12.85180944]
[1739929579346,0.7025,2675.9,2674.9,3.73834]
[1739929579542,0.98678033,2675.9,2675.1,0.8065]
[1739929579742,3.98678033,2675.9,2675.1,1.26472172]
[1739929579919,3.7025,2675.9,2675.2,0.04148179]
[1739929580120,0.7025,2676.1,2675.2,3.77939179]
[1739929580320,0.61093297,2676.2,2675.5,0.8065]
[1739929580523,6.0825,2676.4,2675.5,0.8065]
[1739929580871,6.0825,2676.4,2675.6,0.53279351]
[1739929581044,5.38,2676.4,2675.6,0.53279351]
[1739929581348,0.7025,2676.7,2675.8,0.789]
[1739929581737,3.7025,2676.7,2675.9,0.04345279]
[1739929581935,2.52842603,2676.5,2675.9,0.04345279]
[1739929582136,1.35561987,2676.4,2675.9,0.04345279]
[1739929582317,1.35561987,2676.4,2675.6,0.8131]
[1739929582518,4.35561987,2676.4,2676.0,0.04326487]